bitfinex-derivatives/quotes_BTCF0:USTF0_20250926
["timestamp","ask_amount","ask_price","bid_price","bid_amount"]
[1758887043192,0.1269271,109110.0,109100.0,0.44863211]
[1758887043499,0.59834477,109110.0,109100.0,0.02224]
[1758887043699,0.1269271,109110.0,109100.0,0.02224]
[1758887044592,0.1269271,109110.0,109100.0,0.1138355]
[1758887044996,0.13588792,109110.0,109100.0,0.1138355]
[1758887045198,0.13588792,109110.0,109100.0,0.1258355]
[1758887045399,0.13588792,109110.0,109100.0,0.1278355]
[1758887045990,0.13588792,109110.0,109100.0,0.03624]
[1758887047198,0.60730559,109110.0,109100.0,0.03624]
[1758887047502,0.96810559,109110.0,109100.0,0.03624]
[1758887047704,0.96810559,109110.0,109100.0,0.014]
[1758887048101,0.96810559,109110.0,109100.0,0.03727]
[1758887048906,0.96910559,109110.0,109100.0,0.03527]
[1758887049302,0.96910559,109110.0,109100.0,0.02327]
[1758887049698,0.49768792,109110.0,109100.0,0.02327]
[1758887049903,0.96910559,109110.0,109100.0,0.02327]
[1758887050602,0.49768792,109110.0,109100.0,0.02327]
[1758887050802,0.1047755,109100.0,109090.0,1.20876]
[1758887051099,0.1047755,109100.0,109090.0,1.68017767]
[1758887051294,0.1047755,109100.0,109090.0,1.20876]
[1758887051497,0.1047755,109100.0,109090.0,1.68017767]
[1758887052208,0.1057755,109100.0,109090.0,1.68017767]
[1758887052501,0.1280855,109100.0,109090.0,0.83221767]
[1758887052706,0.1280855,109100.0,109090.0,0.02327]
[1758887052999,1.0506838,109100.0,109090.0,0.02327]
[1758887056712,1.40456593,109100.0,109090.0,0.46875593]
[1758887057713,1.40456593,109100.0,109090.0,0.1148738]
[1758887057912,1.40456593,109100.0,109090.0,0.37715213]
[1758887058114,1.40456593,109100.0,109090.0,0.02327]
[1758887058314,1.40456593,109100.0,109090.0,0.37715213]
[1758887058914,1.40456593,109100.0,109090.0,0.02327]
[1758887059216,1.40456593,109100.0,109090.0,0.37715213]
[1758887060609,1.40456593,109100.0,109090.0,0.02327]
[1758887060913,1.40456593,109100.0,109090.0,0.37715213]
[1758887061104,1.0506838,109100.0,109090.0,0.02327]
[1758887061301,1.40456593,109100.0,109090.0,0.37715213]
[1758887063713,1.40456593,109100.0,109090.0,0.02327]
[1758887063914,1.40456593,109100.0,109090.0,0.37715213]
[1758887065122,1.76536593,109100.0,109090.0,0.37715213]
[1758887067017,0.1270934,109090.0,109080.0,0.02327]
[1758887067219,0.84177553,109090.0,109080.0,0.37715213]
[1758887068221,0.84177553,109090.0,109080.0,0.37815213]
[1758887068625,0.1270934,109090.0,109080.0,0.83056393]
[1758887069121,0.1270934,109090.0,109080.0,1.19044606]
[1758887069319,0.1270934,109090.0,109080.0,0.82964606]
[1758887070026,0.1270934,109090.0,109080.0,0.47576393]
[1758887070422,0.48097553,109090.0,109080.0,0.47576393]
[1758887071225,0.48097553,109090.0,109080.0,0.82964606]
[1758887071427,0.48097553,109090.0,109080.0,1.19044606]
[1758887072021,0.1270934,109090.0,109080.0,1.19044606]
[1758887072516,0.9749334,109090.0,109080.0,1.19044606]
[1758887072929,0.9749334,109090.0,109080.0,1.19148546]
[1758887073130,0.1270934,109090.0,109080.0,1.20271546]
[1758887073428,0.1139134,109090.0,109080.0,1.60271546]
[1758887074128,0.1139134,109090.0,109080.0,1.60293977]
[1758887076424,0.1270334,109090.0,109080.0,1.60293977]
[1758887076824,0.1270334,109090.0,109080.0,1.23090977]
[1758887079028,0.1270334,109090.0,109080.0,0.87702764]
[1758887079230,0.48091553,109090.0,109080.0,0.52314551]
[1758887079432,0.48091553,109090.0,109080.0,0.47702764]
[1758887080130,0.48091553,109090.0,109080.0,0.03153371]
[1758887080337,0.84171553,109090.0,109080.0,0.03153371]
[1758887081227,0.84171553,109090.0,109080.0,0.38541584]
[1758887083336,0.48091553,109090.0,109080.0,0.47702764]
[1758887083934,0.1139134,109090.0,109080.0,1.20293977]
[1758887084930,0.1139134,109090.0,109080.0,1.26853188]
[1758887092041,0.1270334,109090.0,109080.0,1.26853188]
[1758887093129,0.1139134,109090.0,109080.0,1.26853188]
[1758887094943,0.1270334,109090.0,109080.0,1.26853188]
[1758887095844,0.1139134,109090.0,109080.0,1.26853188]
[1758887098147,0.1139134,109090.0,109080.0,1.26875575]
[1758887098548,0.1139134,109090.0,109080.0,1.26897962]
[1758887100050,0.1139134,109090.0,109080.0,1.26920479]
[1758887100548,0.1139134,109090.0,109080.0,0.56144053]
[1758887100747,0.1139134,109090.0,109080.0,1.26920479]
[1758887102444,0.1139134,109090.0,109080.0,1.26942996]
[1758887103249,0.1270434,109090.0,109080.0,0.89739916]
[1758887103648,0.48092553,109090.0,109080.0,0.54351703]
[1758887103948,0.48092553,109090.0,109080.0,0.5437422]
[1758887104149,0.48092553,109090.0,109080.0,0.18986007]
[1758887104349,0.48092553,109090.0,109080.0,1.3913422]
[1758887104550,0.48092553,109090.0,109080.0,1.2997312]
[1758887104748,0.48092553,109090.0,109080.0,1.2987312]
[1758887104944,0.48192553,109090.0,109080.0,0.93884907]
[1758887105147,1.24272553,109090.0,109080.0,0.93884907]
[1758887105439,0.88192553,109090.0,109080.0,1.2927312]
[1758887106248,0.88192553,109090.0,109080.0,1.29285888]
[1758887106444,0.88092553,109090.0,109080.0,1.29285888]
[1758887106756,1.24272553,109090.0,109080.0,1.29285888]
[1758887107556,1.24272553,109090.0,109080.0,0.44525888]
[1758887108055,1.24272553,109090.0,109080.0,0.37966677]
[1758887108440,0.1045983,109080.0,109070.0,0.0643336]
[1758887108645,0.1045983,109080.0,109040.0,1.7712693]
[1758887108646,0.1136436,109050.0,109040.0,1.7712693]
[1758887108953,0.48051573,109050.0,109040.0,1.57343213]
[1758887109152,0.1266336,109050.0,109040.0,1.92731426]
[1758887109352,0.1136436,109050.0,109040.0,2.01895626]
[1758887109548,0.1136424,109060.0,109050.0,0.03516]
[1758887109754,0.1136424,109060.0,109050.0,0.38904213]
[1758887109952,0.1136424,109060.0,109050.0,0.74984213]
[1758887110150,0.1266324,109060.0,109050.0,0.39596]
[1758887110356,0.1266324,109060.0,109050.0,0.74984213]
[1758887110557,0.48051453,109060.0,109050.0,0.02255]
[1758887110856,0.48151453,109060.0,109050.0,0.37643213]
[1758887111052,0.48670622,109060.0,109050.0,0.37643213]
[1758887111253,0.48670622,109060.0,109050.0,0.02255]
[1758887111755,0.48870622,109060.0,109050.0,0.02255]
[1758887112958,1.76193054,109060.0,109050.0,0.02255]
[1758887113345,1.05416628,109060.0,109050.0,0.02255]
[1758887113655,1.76193054,109060.0,109050.0,0.02255]
[1758887113855,1.40804841,109060.0,109050.0,0.02255]
[1758887115661,1.39885672,109060.0,109050.0,0.37643213]
[1758887116562,1.39885672,109060.0,109050.0,0.02255]
[1758887116762,1.40802996,109060.0,109050.0,0.02255]
[1758887117662,1.40802996,109060.0,109050.0,0.02364486]
[1758887118461,1.40802996,109060.0,109050.0,0.37752699]
[1758887118662,1.05414783,109060.0,109050.0,0.02364486]
[1758887119663,1.05414783,109060.0,109050.0,0.02380156]
[1758887120054,1.05414783,109060.0,109050.0,0.39583156]
[1758887120055,1.05418783,109060.0,109050.0,0.39583156]
[1758887120255,1.05418783,109060.0,109050.0,0.03503156]
[1758887120758,1.05418783,109060.0,109050.0,0.02380156]
[1758887121261,1.05418783,109060.0,109050.0,0.38460156]
[1758887121958,1.05418783,109060.0,109050.0,0.02380156]
[1758887122963,0.19745459,109060.0,109050.0,0.02380156]
[1758887123161,1.04497459,109060.0,109050.0,0.39583156]
[1758887123964,1.04497459,109060.0,109050.0,0.38460156]
[1758887124563,0.16644739,109060.0,109050.0,1.2680431]
[1758887125564,0.18845739,109060.0,109050.0,0.79583156]
[1758887125765,0.18845739,109060.0,109050.0,1.2680431]
[1758887126265,0.18845739,109060.0,109050.0,1.26827134]
[1758887126468,0.18845739,109060.0,109050.0,0.7960598]
[1758887126655,0.18845739,109060.0,109050.0,1.26827134]
[1758887127064,0.18845739,109060.0,109050.0,1.26849848]
[1758887127562,0.18845739,109060.0,109050.0,1.36013198]
[1758887128359,0.18845739,109060.0,109050.0,2.20765198]
[1758887128559,0.09683219,109060.0,109050.0,2.20765198]
[1758887129167,0.09683219,109060.0,109050.0,2.20802635]
[1758887129366,0.09483219,109060.0,109050.0,2.20902635]
[1758887129561,0.09383219,109060.0,109050.0,2.20902635]
[1758887130266,0.09383219,109060.0,109050.0,2.20925349]
[1758887130669,0.4874171,109080.0,109070.0,0.03554]
[1758887130867,0.4874171,109080.0,109070.0,0.50775154]
[1758887131273,0.1136188,109080.0,109070.0,1.44911719]
[1758887131771,0.1136188,109080.0,109070.0,1.80991719]
[1758887132268,0.1136188,109080.0,109070.0,1.80760874]
[1758887132462,0.1136188,109080.0,109070.0,1.80994599]
[1758887132665,0.0916088,109080.0,109070.0,1.80994599]
[1758887132971,0.1265457,109090.0,109080.0,0.1148686]
[1758887133267,0.1265457,109090.0,109080.0,0.94788014]
[1758887133869,0.1265457,109090.0,109080.0,0.96285619]
[1758887134370,0.1265457,109090.0,109080.0,0.87127639]
[1758887134566,0.1265457,109090.0,109080.0,0.38645485]
[1758887134870,0.1265457,109090.0,109080.0,0.38745485]
[1758887135666,0.1265457,109090.0,109080.0,0.47906375]
[1758887136064,0.1265457,109090.0,109080.0,0.49167375]
[1758887136269,0.02195,109090.0,109080.0,0.96388529]
[1758887138565,0.1135504,109090.0,109080.0,0.96388529]
[1758887139469,0.1135504,109090.0,109080.0,0.49167375]
[1758887139675,0.1135504,109090.0,109080.0,0.96388529]
[1758887140475,0.1272004,109090.0,109080.0,0.49167375]
[1758887140775,0.1272004,109090.0,109080.0,0.96388529]
[1758887141071,0.1135504,109090.0,109080.0,0.96388529]
[1758887144173,0.1135504,109090.0,109080.0,0.49167375]
[1758887144376,0.1272004,109090.0,109080.0,0.49167375]
[1758887149484,0.1272004,109090.0,109080.0,0.96388529]
[1758887152479,0.1272004,109090.0,109080.0,0.95127529]
[1758887152982,0.1272004,109090.0,109080.0,0.38745485]
[1758887153186,0.59941194,109090.0,109080.0,0.38745485]
[1758887153683,0.59941194,109090.0,109080.0,0.02665485]
[1758887154083,0.58689194,109090.0,109080.0,0.02665485]
[1758887154388,0.98689194,109090.0,109080.0,0.02665485]
[1758887156189,0.98689194,109090.0,109080.0,0.02717553]
[1758887156677,0.98989194,109090.0,109080.0,0.02717553]
[1758887157082,0.99689194,109090.0,109080.0,0.02617553]
[1758887158390,0.99689194,109090.0,109080.0,0.02669621]
[1758887158584,1.84393194,109090.0,109080.0,0.02669621]
[1758887158780,2.20473194,109090.0,109080.0,0.02669621]
[1758887159092,2.22695855,109090.0,109080.0,0.02669621]
[1758887159393,2.22695855,109090.0,109080.0,0.02690604]
[1758887159592,2.22695855,109090.0,109080.0,0.00364604]
[1758887160786,1.75474701,109090.0,109080.0,0.00364604]
[1758887160982,2.22695855,109090.0,109080.0,0.02690604]
[1758887161591,1.75474701,109090.0,109080.0,0.02690604]
[1758887161792,2.22695855,109090.0,109080.0,0.02690604]
[1758887163289,2.22695855,109090.0,109080.0,0.00364604]
[1758887166898,0.10976211,109070.0,109060.0,0.4865263]
[1758887167092,0.10976211,109070.0,109060.0,0.95873784]
[1758887167287,0.10976211,109070.0,109060.0,0.86711154]
[1758887168091,0.12300211,109070.0,109060.0,0.85411154]
[1758887168296,0.12300211,109070.0,109060.0,0.3829]
[1758887168498,0.12300211,109070.0,109060.0,0.44846725]
[1758887168696,0.12300211,109070.0,109060.0,0.3829]
[1758887168989,0.48380211,109070.0,109060.0,0.0221]
[1758887169190,1.80297365,109070.0,109060.0,0.001]
[1758887169800,2.23424238,109070.0,109060.0,0.001]
[1758887171201,2.21200933,109070.0,109060.0,0.001]
[1758887171499,2.23422833,109070.0,109060.0,0.001]
[1758887171902,0.1271848,109050.0,109040.0,0.38236]
[1758887172288,0.59939634,109050.0,109040.0,0.38236]
[1758887172998,0.1271848,109050.0,109040.0,0.38236]
[1758887173599,0.1271848,109050.0,109040.0,0.38336]
[1758887174888,0.1271848,109050.0,109040.0,0.39036]
[1758887175501,0.1271848,109050.0,109040.0,0.38436]
[1758887176094,0.1271848,109050.0,109040.0,0.38336]
[1758887176697,1.80715634,109050.0,109040.0,0.02256]
[1758887176905,1.80715634,109050.0,109040.0,0.001]
[1758887177395,2.20715634,109050.0,109040.0,0.001]
[1758887178193,2.20715634,109050.0,109040.0,0.02256]
[1758887178395,0.1139617,109030.0,109020.0,1.00185154]
[1758887178592,0.48150712,109030.0,109020.0,0.87094542]
[1758887178996,0.48150712,109030.0,109020.0,0.87086542]
[1758887179199,0.49078784,109030.0,109020.0,0.51656]
[1758887179595,0.49078784,109030.0,109020.0,0.87086542]
[1758887180103,0.13648242,109030.0,109020.0,0.87186542]
[1758887180398,0.49078784,109030.0,109020.0,0.51756]
[1758887180595,0.49078784,109030.0,109020.0,0.87332947]
[1758887180904,0.13648242,109030.0,109020.0,0.87332947]
[1758887181095,0.49078784,109030.0,109020.0,0.87332947]
[1758887181696,0.49078784,109030.0,109020.0,0.87349507]
[1758887182204,0.49078784,109030.0,109020.0,0.51933143]
[1758887183298,0.49078784,109030.0,109020.0,0.87363685]
[1758887184300,0.1272017,109030.0,109020.0,0.88663685]
[1758887184505,0.48150712,109030.0,109020.0,1.24743685]
[1758887184805,0.1272017,109030.0,109020.0,1.24743685]
[1758887184999,0.46826712,109030.0,109020.0,1.69340237]
[1758887185204,0.1139617,109030.0,109020.0,1.69340237]
[1758887185592,0.1139617,109030.0,109020.0,1.33909695]
[1758887186402,0.1139617,109030.0,109020.0,0.98479153]
[1758887186608,0.1139617,109030.0,109020.0,1.33909695]
[1758887187001,0.961197,109040.0,109030.0,0.1262117]
[1758887187306,0.961197,109040.0,109030.0,0.84308855]
[1758887187501,0.1139506,109050.0,109040.0,0.1262033]
[1758887187805,0.1139506,109050.0,109040.0,0.48050872]
[1758887188004,0.1139506,109050.0,109040.0,0.1262033]
[1758887188200,0.48149602,109050.0,109040.0,0.37586542]
[1758887188401,0.48149602,109050.0,109040.0,0.37763685]
[1758887188708,0.48149602,109050.0,109040.0,0.37776219]
[1758887189400,0.84229602,109050.0,109040.0,0.37776219]
[1758887189603,0.48149602,109050.0,109040.0,0.37776219]
[1758887190107,0.48449602,109050.0,109040.0,0.37776219]
[1758887190308,0.84529602,109050.0,109040.0,0.02345677]
[1758887190807,0.85229602,109050.0,109040.0,0.02345677]
[1758887190997,0.85129602,109050.0,109040.0,0.02358211]
[1758887191400,0.84929602,109050.0,109040.0,0.02358211]
[1758887191902,0.85029602,109050.0,109040.0,0.02358211]
[1758887192609,0.48949602,109050.0,109040.0,0.02358211]
[1758887192805,0.48949602,109050.0,109040.0,0.11522531]
[1758887193108,0.48949602,109050.0,109040.0,0.46953073]
[1758887193310,0.48449602,109050.0,109040.0,0.46953073]
[1758887193505,0.49149602,109050.0,109040.0,0.46953073]
[1758887194208,0.49149602,109050.0,109040.0,0.46945073]
[1758887194415,0.49149602,109050.0,109040.0,0.46941073]
[1758887195001,0.49149602,109050.0,109040.0,0.11510531]
[1758887195314,0.1239506,109050.0,109040.0,0.84352073]
[1758887195612,0.47825602,109050.0,109040.0,0.39107753]
[1758887196006,0.47825602,109050.0,109040.0,0.75187753]
[1758887196206,0.47825602,109050.0,109040.0,0.84352073]
[1758887196602,0.03231,109050.0,109040.0,0.84352073]
[1758887196807,0.03231,109050.0,109040.0,1.19782615]
[1758887197407,0.01,109050.0,109040.0,1.19782615]
[1758887197909,0.01,109050.0,109040.0,2.04494615]
[1758887198216,0.01,109050.0,109040.0,2.5366514]
[1758887199209,0.01,109050.0,109040.0,2.60221865]
[1758887199406,0.01,109050.0,109040.0,2.20221865]
[1758887199911,0.01,109050.0,109040.0,2.1366514]
[1758887200115,0.007,109050.0,109040.0,2.1376514]
[1758887200816,0.16346963,109060.0,109050.0,0.1278648]
[1758887201020,0.0916262,109060.0,109050.0,0.84297022]
[1758887201312,0.1132762,109060.0,109050.0,0.84297022]
[1758887201617,0.1262062,109060.0,109050.0,0.39053542]
[1758887201823,0.48051162,109060.0,109050.0,0.37722542]
[1758887202022,0.48051162,109060.0,109050.0,0.39255753]
[1758887203015,0.55274426,109060.0,109050.0,0.39255753]
[1758887203814,1.26784968,109060.0,109050.0,0.02594211]
[1758887204020,1.69005512,109060.0,109050.0,0.00302211]
[1758887204622,2.51584968,109060.0,109050.0,0.02594211]
[1758887204818,1.66784968,109060.0,109050.0,0.02594211]
[1758887205022,2.53793497,109060.0,109050.0,0.02594211]
[1758887205224,2.53993497,109060.0,109050.0,0.02594211]
[1758887205520,2.54693497,109060.0,109050.0,0.02494211]
[1758887205725,2.52472968,109060.0,109050.0,0.02494211]
[1758887206127,1.67684968,109060.0,109050.0,0.02494211]
[1758887206313,2.52472968,109060.0,109050.0,0.02494211]
[1758887206714,2.54693468,109060.0,109050.0,0.02494211]
[1758887207219,2.54793468,109060.0,109050.0,0.02494211]
[1758887207418,2.54093468,109060.0,109050.0,0.02494211]
[1758887207619,2.54793468,109060.0,109050.0,0.02494211]
[1758887209128,1.83932384,109060.0,109050.0,0.02494211]
[1758887209324,2.54793468,109060.0,109050.0,0.02494211]
[1758887209525,2.52572968,109060.0,109050.0,0.02494211]
[1758887209823,2.54793749,109060.0,109050.0,0.02494211]
[1758887210029,2.52572968,109060.0,109050.0,0.02494211]
[1758887210219,2.52272968,109060.0,109050.0,0.02494211]
[1758887210423,2.52572968,109060.0,109050.0,0.02494211]
[1758887210628,2.52572968,109060.0,109050.0,0.02538836]
[1758887211020,2.52272968,109060.0,109050.0,0.02538836]
[1758887211220,2.54794164,109060.0,109050.0,0.02538836]
[1758887211426,2.52572968,109060.0,109050.0,0.02538836]
[1758887211826,2.52572968,109060.0,109050.0,0.02583461]
[1758887212826,2.52572968,109060.0,109050.0,0.02595272]
[1758887213533,2.52572968,109060.0,109050.0,0.02607083]
[1758887215223,1.04262884,109060.0,109050.0,0.48532105]
[1758887215422,0.19550884,109060.0,109050.0,1.24612105]
[1758887216032,0.17385884,109060.0,109050.0,0.89181563]
[1758887216239,0.17385884,109060.0,109050.0,1.24612105]
[1758887216933,0.08223264,109060.0,109050.0,1.24612105]
[1758887217127,0.08223264,109060.0,109050.0,2.44750647]
[1758887217329,0.08223264,109060.0,109050.0,2.53920332]
[1758887217529,0.01,109060.0,109050.0,2.60489343]
[1758887218030,0.01,109060.0,109050.0,2.53932618]
[1758887218236,0.01,109060.0,109050.0,2.60504676]
[1758887218841,0.007,109060.0,109050.0,2.60804676]
[1758887219035,0.007,109060.0,109050.0,2.54232618]
[1758887219238,0.1045363,109090.0,109080.0,0.1049196]
[1758887219437,0.02165,109090.0,109080.0,1.20052413]
[1758887219740,0.1132512,109090.0,109080.0,1.20052413]
[1758887220940,0.02165,109090.0,109080.0,1.20052413]
[1758887221137,0.02365,109090.0,109080.0,1.20052413]
[1758887221843,0.02365,109090.0,109080.0,1.20152413]
[1758887222239,0.02365,109090.0,109080.0,0.49291329]
[1758887222438,0.09692528,109090.0,109080.0,1.20152413]
[1758887222639,0.09692528,109090.0,109080.0,1.60152413]
[1758887222640,0.002,109090.0,109080.0,1.60152413]
[1758887223042,0.002,109090.0,109080.0,1.60168824]
[1758887224245,0.002,109090.0,109080.0,1.60177184]
[1758887224843,0.002,109090.0,109080.0,1.60185544]
[1758887225748,0.1133946,109110.0,109100.0,0.1283229]
[1758887225944,0.1133947,109110.0,109100.0,0.83693374]
[1758887226643,0.1133947,109110.0,109100.0,1.19773374]
[1758887226644,0.02181,109110.0,109100.0,1.19773374]
[1758887226947,0.1133947,109110.0,109100.0,1.20133874]
[1758887227244,0.02181,109110.0,109100.0,1.20133874]
[1758887227448,0.02281,109110.0,109100.0,1.20133874]
[1758887228048,0.001,109110.0,109100.0,1.20133874]
[1758887228244,0.001,109110.0,109100.0,0.4927279]
[1758887228441,0.1143947,109110.0,109100.0,0.4927279]
[1758887228647,0.1143947,109110.0,109100.0,1.20133874]
[1758887228952,0.18803754,109110.0,109100.0,1.20133874]
[1758887229546,0.001,109110.0,109100.0,1.20133874]
[1758887229752,0.001,109110.0,109100.0,1.69299356]
[1758887231746,0.001,109110.0,109100.0,2.04729898]
[1758887232045,0.0915764,109120.0,109110.0,0.0915847]
[1758887232255,0.0915764,109120.0,109110.0,1.69022012]
[1758887232648,0.0915764,109120.0,109110.0,1.78186654]
[1758887232849,0.0915764,109120.0,109110.0,1.78547154]
[1758887233141,0.54779097,109130.0,109120.0,0.1283063]
[1758887233347,0.54779097,109130.0,109120.0,0.83691714]
[1758887233552,0.18699097,109130.0,109120.0,0.83691714]
[1758887233947,0.18699097,109130.0,109120.0,0.84052214]
[1758887235454,0.18699097,109130.0,109120.0,0.84752214]
[1758887236651,0.09541737,109130.0,109120.0,1.29996016]
[1758887236854,0.07360737,109130.0,109120.0,1.29996016]
[1758887237055,0.1263959,109140.0,109130.0,0.1282979]
[1758887237357,0.1263959,109140.0,109130.0,0.48260332]
[1758887237854,0.1263959,109140.0,109130.0,0.48620832]
[1758887238357,0.1273959,109140.0,109130.0,0.48620832]
[1758887238659,0.20024938,109140.0,109130.0,0.60335602]
[1758887238848,0.20024938,109140.0,109130.0,0.60435602]
[1758887239044,0.18722938,109140.0,109130.0,1.45095602]
[1758887239355,0.16541938,109140.0,109130.0,1.81175602]
[1758887241455,0.16541298,109140.0,109130.0,2.21175602]
[1758887241956,0.16541298,109140.0,109130.0,2.2209955]
[1758887244358,0.07385348,109140.0,109130.0,2.2209955]
[1758887245067,0.07385348,109140.0,109130.0,2.22114957]
[1758887246058,0.07385348,109140.0,109130.0,2.22130364]
[1758887246862,0.16541318,109140.0,109130.0,2.22130364]
[1758887247064,0.16541318,109140.0,109130.0,2.22145771]
[1758887247556,0.16541318,109140.0,109130.0,1.74076511]
[1758887247756,0.16541318,109140.0,109130.0,2.21221823]
[1758887249258,0.16541318,109140.0,109130.0,2.2123723]
[1758887250372,0.20069318,109140.0,109130.0,0.48038938]
[1758887250573,0.20069318,109140.0,109130.0,1.32678938]
[1758887250865,0.18722318,109140.0,109130.0,1.8121725]
[1758887251768,0.16541318,109140.0,109130.0,1.8121725]
[1758887254175,0.16541318,109140.0,109130.0,1.8121325]
[1758887255564,0.16541318,109140.0,109130.0,1.7205644]
[1758887256273,0.16541318,109140.0,109130.0,1.8121325]
[1758887256774,0.16541318,109140.0,109130.0,1.7205644]
[1758887259177,0.18765309,109140.0,109130.0,1.7205644]
[1758887259375,0.20046309,109140.0,109130.0,1.7205644]
[1758887260071,0.17822318,109140.0,109130.0,1.7205644]
[1758887260270,0.20046203,109140.0,109130.0,1.24911128]
[1758887260469,0.20046203,109140.0,109130.0,1.7205644]
[1758887261377,0.18765203,109140.0,109130.0,1.7205644]
[1758887262274,0.18765203,109140.0,109130.0,1.8121325]
[1758887264072,0.18765203,109140.0,109130.0,1.7205644]
[1758887265180,0.18765203,109140.0,109130.0,1.8121325]
[1758887265872,0.09609233,109140.0,109130.0,1.8121325]
[1758887266079,0.001,109140.0,109130.0,2.30376213]
[1758887266381,0.001,109140.0,109130.0,2.36944455]
[1758887266575,0.001,109140.0,109130.0,2.30376213]
[1758887266772,0.4523491,109160.0,109150.0,0.1257513]
[1758887266973,0.09524215,109160.0,109150.0,1.80424442]
[1758887267176,0.18678505,109160.0,109150.0,1.8084657]
[1758887267868,0.1655222,109160.0,109150.0,1.8084657]
[1758887270278,0.1142104,109170.0,109160.0,0.1257429]
[1758887270479,0.13627189,109170.0,109160.0,0.59719602]
[1758887270879,0.1142104,109170.0,109160.0,0.59719602]
[1758887271280,0.1142104,109170.0,109160.0,0.60157133]
[1758887271680,0.18768095,109170.0,109160.0,0.60157133]
[1758887272082,0.18768095,109170.0,109160.0,0.13011821]
[1758887272383,0.20049095,109170.0,109160.0,0.51002843]
[1758887272983,0.20049095,109170.0,109160.0,0.03866838]
[1758887273583,0.20049095,109170.0,109160.0,0.03876145]
[1758887274080,0.20049095,109170.0,109160.0,0.13030435]
[1758887274287,0.20049095,109170.0,109160.0,0.03876145]
[1758887275578,0.20049095,109170.0,109160.0,0.13030435]
[1758887276186,0.20049095,109170.0,109160.0,0.13039742]
[1758887276585,0.20049095,109170.0,109160.0,0.03894759]
[1758887277285,0.18768095,109170.0,109160.0,0.51040071]
[1758887277886,0.18768095,109170.0,109160.0,0.03894759]
[1758887278085,0.18768095,109170.0,109160.0,0.51040071]
[1758887278686,0.18768095,109170.0,109160.0,0.51140071]
[1758887279389,0.18768095,109170.0,109160.0,0.03994759]
[1758887279687,1.43274407,109170.0,109160.0,0.02720759]
[1758887280678,0.60049095,109170.0,109160.0,0.59020361]
[1758887280884,0.20049095,109170.0,109160.0,0.60294361]
[1758887281086,0.18768095,109170.0,109160.0,0.60294361]
[1758887281293,0.18768095,109170.0,109160.0,0.13149049]
[1758887281498,0.18768095,109170.0,109160.0,0.60309086]
[1758887281982,0.18768095,109170.0,109160.0,0.60323811]
[1758887282385,0.18768095,109170.0,109160.0,0.60223811]
[1758887284793,0.18768095,109170.0,109160.0,0.6023087]
[1758887285184,0.18768095,109170.0,109160.0,0.96317929]
[1758887285790,0.16505095,109170.0,109160.0,0.96317929]
[1758887286788,0.16505095,109170.0,109160.0,1.05478374]
[1758887286991,0.16505095,109170.0,109160.0,1.05485433]
[1758887287189,0.07351055,109170.0,109160.0,1.05485433]
[1758887287387,0.0915746,109170.0,109160.0,1.45485433]
[1758887287897,0.0915746,109170.0,109160.0,1.45492492]
[1758887288195,4e-05,109170.0,109160.0,1.45492492]
[1758887288494,0.0915746,109170.0,109160.0,1.45492492]
[1758887288895,4e-05,109170.0,109160.0,1.45499551]
[1758887289092,0.0915746,109170.0,109160.0,1.45499551]
[1758887289388,4e-05,109170.0,109160.0,1.45499551]
[1758887289994,0.0915746,109170.0,109160.0,1.45499551]
[1758887290193,0.0915746,109170.0,109160.0,1.4550661]
[1758887294599,0.0915746,109170.0,109160.0,0.98361298]
[1758887294792,0.0915746,109170.0,109160.0,1.4550661]
[1758887295603,0.0915746,109170.0,109160.0,1.52074852]
[1758887297902,0.0915746,109170.0,109160.0,1.52082001]
[1758887298097,4e-05,109170.0,109160.0,1.99227313]
[1758887298404,4e-05,109170.0,109160.0,2.02934863]
[1758887299597,4e-05,109170.0,109160.0,2.02930863]
[1758887299904,4e-05,109170.0,109160.0,2.09493716]
[1758887300101,4e-05,109170.0,109160.0,2.09500865]
[1758887300597,4e-05,109170.0,109160.0,2.21196455]
[1758887301192,4e-05,109170.0,109160.0,2.21203604]
[1758887301397,0.0915747,109170.0,109160.0,1.85874866]
[1758887301702,0.0915747,109170.0,109160.0,1.85882015]
[1758887303307,0.0915747,109170.0,109160.0,1.85889164]
[1758887304300,0.0915747,109170.0,109160.0,1.85299707]
[1758887304506,0.0915747,109170.0,109160.0,1.85905747]
[1758887305407,0.0915747,109170.0,109160.0,1.8592233]
[1758887306611,0.0915747,109170.0,109160.0,1.85938913]
[1758887310611,0.0915747,109170.0,109160.0,1.45938913]
[1758887310803,0.0915747,109170.0,109160.0,2.2021427]
[1758887312313,4e-05,109170.0,109160.0,2.2021427]
[1758887312805,0.0915747,109170.0,109160.0,2.2021427]
[1758887314214,0.0915747,109170.0,109160.0,2.2021027]
[1758887315106,0.0915747,109170.0,109160.0,1.49552794]
[1758887315313,0.0915747,109170.0,109160.0,2.2021027]
[1758887316609,4e-05,109170.0,109160.0,2.2021027]
[1758887316814,4e-05,109170.0,109160.0,2.65313477]
[1758887317201,0.18668486,109190.0,109180.0,0.1282462]
[1758887317414,0.18668486,109190.0,109180.0,2.04098096]
[1758887317707,0.18668486,109190.0,109180.0,1.34079826]
[1758887317923,0.18668486,109190.0,109180.0,2.04737302]
[1758887318116,0.19935486,109190.0,109180.0,1.95584682]
[1758887318304,0.19935486,109190.0,109180.0,1.94231682]
[1758887318615,0.55264224,109190.0,109180.0,1.58902944]
[1758887319206,0.55264224,109190.0,109180.0,1.22822944]
[1758887319416,0.91344224,109190.0,109180.0,1.22822944]
[1758887319611,0.93545706,109190.0,109180.0,1.22822944]
[1758887321920,0.93545706,109190.0,109180.0,0.38286944]
[1758887322113,0.93545706,109190.0,109180.0,1.22814944]
[1758887323120,0.93545706,109190.0,109180.0,0.87486206]
[1758887323319,0.93545706,109190.0,109180.0,1.22814944]
[1758887324116,1.33545706,109190.0,109180.0,0.38286944]
[1758887324412,0.18755968,109190.0,109180.0,1.20201312]
[1758887324615,0.16554486,109190.0,109180.0,1.20201312]
[1758887324818,0.18668486,109190.0,109180.0,1.20201312]
[1758887325216,0.18668486,109190.0,109180.0,0.84121312]
[1758887325421,0.18668486,109190.0,109180.0,0.74968682]
[1758887326819,0.18668486,109190.0,109180.0,0.84121312]
[1758887327310,0.18668486,109190.0,109180.0,0.13463836]
[1758887327510,0.18668486,109190.0,109180.0,0.84121312]
[1758887329912,0.18668486,109190.0,109180.0,0.13463836]
[1758887330217,0.18668486,109190.0,109180.0,0.84121312]
[1758887330524,0.18668486,109190.0,109180.0,0.74968682]
[1758887331421,0.18668486,109190.0,109180.0,0.7497369]
[1758887332326,0.18668486,109190.0,109180.0,0.8412632]
[1758887334218,0.18668486,109190.0,109180.0,0.13468844]
[1758887334418,0.18668486,109190.0,109180.0,0.8412632]
[1758887339522,0.18668486,109190.0,109180.0,1.2020632]
[1758887339736,0.18668486,109190.0,109180.0,0.8412632]
[1758887342230,0.18668486,109190.0,109180.0,0.7497369]
[1758887342432,0.55295224,109190.0,109180.0,1.5811669]
[1758887342734,0.19966486,109190.0,109180.0,0.87459214]